bitfinex-derivatives/quotes_SOLF0:USTF0_20250803
["timestamp","ask_amount","ask_price","bid_price","bid_amount"]
[1754203235433,3.41,160.48,160.47,3.49]
[1754203236245,9.642,160.48,160.47,3.49]
[1754203237941,7.11570484,160.5,160.44,6.2334]
[1754203237942,3.41,160.46,160.44,3.49]
[1754203238649,3.41,160.45,160.43,3.49]
[1754203239849,9.6429,160.46,160.43,3.49]
[1754203240243,3.41,160.46,160.44,3.49]
[1754203240443,6.2325,160.47,160.44,3.49]
[1754203240444,9.6425,160.47,160.44,3.49]
[1754203240646,3.41,160.46,160.44,3.49]
[1754203240847,9.6428,160.46,160.44,3.49]
[1754203241155,6.2328,160.46,160.42,6.2343]
[1754203241352,9.6436,160.44,160.43,3.49]
[1754203241651,3.41,160.44,160.42,3.49]
[1754203241849,9.6442,160.43,160.4,3.49]
[1754203242149,3.41,160.45,160.4,3.49]
[1754203242942,3.41,160.45,160.41,3.49]
[1754203243344,7.11570484,160.44,160.42,3.49]
[1754203243547,9.644,160.43,160.42,3.49]
[1754203244249,3.41,160.41,160.37,5.22011917]
[1754203244554,7.11570484,160.4,160.35,3.49]
[1754203244754,3.41,160.39,160.35,3.49]
[1754203244954,3.41,160.39,160.35,9.7267]
[1754203245256,3.41,160.39,160.36,3.49]
[1754203245451,9.6456,160.39,160.36,3.49]
[1754203246053,3.41,160.39,160.36,6.2365]
[1754203246254,16.76090484,160.4,160.37,3.49]
[1754203248261,3.41,160.39,160.37,3.49]
[1754203249257,3.41,160.39,160.38,3.49]
[1754203250665,16.76090484,160.4,160.38,3.49]
[1754203251358,6.2349,160.41,160.38,3.49]
[1754203251552,10.52570484,160.42,160.38,3.49]
[1754203251755,6.2358,160.39,160.34,6.2373]
[1754203251958,3.41,160.39,160.35,3.49]
[1754203252359,6.2362,160.38,160.35,3.49]
[1754203252558,3.41,160.37,160.35,3.49]
[1754203254565,9.6462,160.38,160.35,3.49]
[1754203257068,3.41,160.38,160.35,9.7271]
[1754203257365,3.41,160.38,160.36,3.49]
[1754203258366,9.646,160.38,160.36,3.49]
[1754203258569,3.41,160.37,160.36,3.49]
[1754203259467,9.6463,160.37,160.36,3.49]
[1754203259964,3.41,160.37,160.36,3.49]
[1754203260166,7.11570484,160.4,160.36,3.49]
[1754203260567,3.41,160.38,160.36,3.49]
[1754203260974,7.11570484,160.4,160.36,3.49]
[1754203261164,3.41,160.4,160.36,3.49]
[1754203262174,3.38,160.41,160.36,3.49]
[1754203262370,7.11570484,160.42,160.36,3.49]
[1754203262371,10.49570484,160.42,160.36,3.49]
[1754203263170,6.235,160.41,160.37,6.236]
[1754203263474,6.235,160.41,160.38,3.2]
[1754203263669,3.38,160.4,160.38,3.2]
[1754203263970,9.615,160.41,160.38,3.2]
[1754203264469,3.38,160.4,160.38,3.2]
[1754203264670,9.6152,160.4,160.38,3.2]
[1754203264870,6.2352,160.4,160.36,6.2366]
[1754203265070,3.38,160.39,160.37,3.2]
[1754203266369,3.38,160.4,160.37,6.2362]
[1754203266570,3.38,160.4,160.38,3.2]
[1754203267571,9.6151,160.4,160.38,3.2]
[1754203267769,9.6151,160.4,160.36,6.2366]
[1754203267770,3.38,160.39,160.36,6.2366]
[1754203268374,3.38,160.39,160.37,3.2]
[1754203269178,6.2353,160.4,160.38,3.2]
[1754203269371,9.6153,160.4,160.38,3.2]
[1754203269769,3.38,160.4,160.38,3.2]
[1754203270072,120.45570484,160.43,160.38,3.2]
[1754203270275,116.72,160.43,160.38,3.2]
[1754203271180,122.9543,160.43,160.39,6.2353]
[1754203271477,122.9543,160.43,160.4,3.2]
[1754203271874,113.34,160.43,160.41,3.2]
[1754203272076,6.2337,160.44,160.41,3.2]
[1754203272275,9.6132,160.45,160.42,3.2]
[1754203272475,3.38,160.46,160.42,3.2]
[1754203273082,6.2333,160.45,160.43,3.2]
[1754203273674,3.38,160.46,160.43,9.4338]
[1754203273879,119.6528,160.47,160.44,3.2]
[1754203274078,113.42,160.47,160.44,3.2]
[1754203274483,116.8,160.47,160.44,9.4333]
[1754203274683,116.8,160.47,160.44,3.2]
[1754203275280,3.38,160.46,160.44,3.2]
[1754203275481,3.38,160.46,160.4,3.2]
[1754203276479,3.38,160.45,160.4,3.2]
[1754203276685,6.2332,160.45,160.41,6.2345]
[1754203276879,3.38,160.44,160.42,3.2]
[1754203277275,3.38,160.45,160.42,3.2]
[1754203277786,3.38,160.44,160.42,3.2]
[1754203279188,3.38,160.43,160.41,3.2]
[1754203279786,6.2333,160.45,160.41,3.2]
[1754203279981,3.38,160.44,160.41,3.2]
[1754203280887,3.38,160.44,160.41,9.4346]
[1754203281083,6.2329,160.46,160.42,3.2]
[1754203281391,116.8,160.47,160.43,6.2337]
[1754203281586,116.8,160.47,160.44,3.2]
[1754203282087,116.8,160.47,160.44,6.2333]
[1754203282289,116.8,160.47,160.45,3.2]
[1754203282683,123.0324,160.47,160.45,3.2]
[1754203285793,123.0324,160.47,160.43,6.2338]
[1754203285794,3.38,160.46,160.43,6.2338]
[1754203286494,3.38,160.45,160.43,6.2338]
[1754203286696,3.38,160.44,160.42,6.2342]
[1754203286896,3.38,160.44,160.43,3.2]
[1754203287788,3.38,160.43,160.39,3.2]
[1754203287992,3.38,160.42,160.39,3.2]
[1754203288192,3.38,160.42,160.4,6.2348]
[1754203288394,3.38,160.42,160.41,3.2]
[1754203288893,3.38,160.42,160.41,9.4347]
[1754203289589,119.6336,160.44,160.41,9.4347]
[1754203289794,3.38,160.43,160.42,3.2]
[1754203290893,116.78,160.44,160.42,3.2]
[1754203291795,113.4,160.44,160.42,3.24]
[1754203291996,116.64,160.44,160.42,9.4743]
[1754203292195,113.4,160.44,160.43,3.24]
[1754203292696,116.64,160.44,160.43,3.24]
[1754203292885,113.4,160.44,160.43,3.24]
[1754203294099,116.64,160.44,160.43,3.24]
[1754203298094,122.8736,160.44,160.41,6.2346]
[1754203298300,3.24,160.43,160.4,9.4751]
[1754203298495,3.24,160.41,160.36,3.24]
[1754203298797,113.36,160.42,160.36,3.24]
[1754203299695,113.36,160.42,160.37,7.11570484]
[1754203299902,6.93605893,160.5,160.38,3.24]
[1754203299903,3.24,160.45,160.38,3.24]
[1754203300094,113.44,160.44,160.38,3.24]
[1754203300294,3.24,160.43,160.42,3.24]
[1754203301698,119.6738,160.44,160.41,3.24]
[1754203301897,119.6738,160.44,160.4,9.475]
[1754203301898,3.24,160.43,160.4,9.475]
[1754203302403,3.24,160.43,160.41,3.24]
[1754203303602,119.6738,160.44,160.41,3.24]
[1754203303797,119.6738,160.44,160.41,9.4747]
[1754203304102,3.24,160.43,160.42,3.24]
[1754203304806,113.44,160.44,160.42,3.24]
[1754203305296,113.44,160.44,160.43,3.24]
[1754203305900,116.68,160.44,160.43,3.24]
[1754203312213,3.24,160.43,160.38,3.24]
[1754203312401,3.24,160.4,160.38,3.24]
[1754203312606,3.24,160.39,160.36,3.24]
[1754203312806,113.44,160.38,160.36,3.24]
[1754203313012,116.68,160.38,160.36,3.24]
[1754203313405,113.44,160.38,160.36,3.24]
[1754203314111,3.24,160.37,160.35,3.24]
[1754203314314,116.68,160.38,160.34,3.24]
[1754203315112,116.68,160.38,160.36,3.24]
[1754203315817,122.9162,160.38,160.34,6.2374]
[1754203316111,122.9162,160.38,160.37,3.24]
[1754203318116,122.9162,160.38,160.34,6.2374]
[1754203318317,3.24,160.37,160.36,3.24]
[1754203319522,119.6762,160.38,160.36,3.24]
[1754203319819,122.9162,160.38,160.34,6.2374]
[1754203320119,122.9162,160.38,160.37,3.24]
[1754203322722,3.52,160.37,160.35,3.47]
[1754203322922,113.62,160.36,160.35,3.47]
[1754203323119,117.14,160.36,160.35,3.47]
[1754203323319,3.52,160.35,160.3,5.22678837]
[1754203323621,120.73570484,160.36,160.28,6.89535602]
[1754203323622,117.14,160.34,160.33,3.47]
[1754203325730,113.62,160.34,160.33,3.47]
[1754203326029,9.7572,160.35,160.34,3.47]
[1754203326030,113.62,160.35,160.34,3.47]
[1754203326515,113.62,160.35,160.34,9.7075]
[1754203327128,7.11570484,160.4,160.34,3.47]
[1754203327330,113.68,160.39,160.34,3.47]
[1754203327625,7.11570484,160.42,160.33,7.11570484]
[1754203327817,419.1,160.43,160.38,3.47]
[1754203328019,113.7,160.41,160.36,3.47]
[1754203328528,113.7,160.41,160.4,3.47]
[1754203330629,113.7,160.41,160.4,9.7051]
[1754203333429,117.22,160.41,160.4,3.47]
[1754203336429,113.7,160.41,160.4,3.47]
[1754203338731,113.7,160.41,160.4,9.7051]
[1754203338932,6.2336,160.44,160.4,3.47]
[1754203339230,113.66,160.43,160.4,3.47]
[1754203340228,113.66,160.43,160.41,6.2347]
[1754203340432,113.66,160.43,160.42,3.47]
[1754203340726,117.18,160.43,160.42,3.47]
[1754203343130,3.52,160.42,160.38,3.47]
[1754203343327,3.52,160.4,160.38,3.47]
[1754203343527,113.64,160.41,160.37,6.236]
[1754203343727,3.52,160.39,160.38,3.47]
[1754203344232,3.52,160.39,160.35,3.47]
[1754203344428,3.52,160.4,160.35,3.47]
[1754203345027,3.52,160.39,160.34,5.23027735]
[1754203345230,3.52,160.39,160.35,3.47]
[1754203345534,3.52,160.39,160.34,5.23027735]
[1754203345535,3.52,160.39,160.36,3.47]
[1754203345834,7.11570484,160.42,160.36,3.47]
[1754203345835,3.52,160.37,160.36,3.47]
[1754203346030,113.72,160.38,160.36,3.47]
[1754203346837,117.24,160.41,160.37,3.47]
[1754203347438,113.72,160.41,160.37,3.47]
[1754203347634,3.52,160.4,160.37,3.47]
[1754203348333,3.52,160.4,160.39,3.47]
[1754203349832,9.7551,160.4,160.34,12.34598219]
[1754203350038,3.52,160.39,160.35,3.47]
[1754203350434,6.2358,160.39,160.36,3.47]
[1754203350634,3.52,160.38,160.36,3.47]
[1754203351140,3.52,160.37,160.36,3.47]
[1754203351838,3.52,160.37,160.34,6.2373]
[1754203352040,3.24,160.36,160.35,3.21]
[1754203352935,3.24,160.36,160.35,9.4471]
[1754203353940,6.236,160.38,160.35,9.4471]
[1754203354142,3.24,160.37,160.36,3.21]
[1754203355539,6.2356,160.39,160.36,3.21]
[1754203355746,3.24,160.39,160.37,3.21]
[1754203356640,3.24,160.41,160.35,3.21]
[1754203356841,116.96,160.41,160.35,3.21]
[1754203357445,123.1949,160.41,160.37,6.236]
[1754203357642,3.24,160.4,160.39,3.21]
[1754203358843,119.9549,160.41,160.39,3.21]
[1754203359049,113.72,160.41,160.39,3.21]
[1754203359646,116.96,160.41,160.39,3.21]
[1754203360251,116.96,160.41,160.39,9.4455]
[1754203360548,116.96,160.41,160.39,3.21]
[1754203360549,3.24,160.41,160.39,3.21]
[1754203366454,9.4748,160.41,160.39,3.21]
[1754203367664,9.4748,160.41,160.38,6.2358]
[1754203367952,9.4748,160.41,160.4,3.21]
[1754203368154,9.4751,160.4,160.39,3.21]
[1754203369048,6.2356,160.39,160.35,3.21]
[1754203369249,3.24,160.37,160.35,3.21]
[1754203369647,6.2356,160.39,160.35,3.21]
[1754203369859,3.24,160.38,160.36,3.21]
[1754203371752,3.24,160.38,160.37,3.21]
[1754203371958,3.24,160.39,160.37,3.21]
[1754203372154,3.24,160.39,160.38,3.21]
[1754203376761,9.4755,160.39,160.38,3.21]
[1754203381158,3.24,160.39,160.38,3.21]
[1754203385366,9.5852,160.4,160.38,3.21]
[1754203385569,119.8149,160.41,160.38,3.21]
[1754203387165,119.8149,160.41,160.38,9.4459]
[1754203387369,119.8149,160.41,160.39,3.34]
[1754203387971,9.5851,160.4,160.39,3.34]
[1754203395879,6.2351,160.4,160.39,3.34]
[1754203397683,119.8148,160.41,160.39,3.34]
[1754203398269,123.1648,160.41,160.39,3.34]
[1754203398475,6.2351,160.4,160.39,3.34]
[1754203403982,9.5851,160.4,160.39,3.34]
[1754203404482,6.2356,160.39,160.36,11.48423752]
[1754203404674,122.9656,160.39,160.37,3.34]
[1754203405983,119.6156,160.39,160.37,3.34]
[1754203406679,122.9656,160.39,160.37,3.34]
[1754203407984,119.6156,160.39,160.37,3.34]
[1754203408177,113.38,160.39,160.37,3.34]
[1754203409174,113.38,160.39,160.37,7.90282574]
[1754203409376,113.38,160.4,160.38,3.34]
[1754203409581,113.38,160.4,160.38,8.58763752]
[1754203409784,113.38,160.4,160.38,5.24763752]
[1754203410086,113.38,160.4,160.39,3.34]
[1754203410683,122.9651,160.4,160.39,3.34]
[1754203413687,116.73,160.4,160.37,5.24763752]
[1754203413891,3.34,160.39,160.36,5.24763752]
[1754203414185,3.34,160.37,160.34,5.24763752]
[1754203414384,9.5763,160.37,160.35,3.24]
[1754203414583,113.38,160.36,160.35,3.24]
[1754203419192,113.38,160.36,160.35,9.4771]
[1754203419983,7.12877969,160.41,160.36,6.2364]
[1754203420189,113.38,160.4,160.35,3.24]
[1754203420384,113.38,160.4,160.36,3.24]
[1754203420691,113.38,160.4,160.38,3.24]
[1754203422494,116.72,160.4,160.38,3.24]
[1754203422693,119.6152,160.4,160.36,6.2365]
[1754203422893,3.34,160.39,160.37,3.24]
[1754203423595,3.34,160.38,160.36,6.2365]
[1754203423894,3.34,160.38,160.35,11.48453752]
[1754203424089,3.34,160.38,160.37,3.24]
[1754203424593,9.5759,160.38,160.36,3.24]
[1754203424994,122.9559,160.38,160.36,3.24]
[1754203425390,119.6159,160.38,160.35,5.24763752]
[1754203425692,122.9559,160.38,160.36,3.24]
[1754203425891,3.34,160.37,160.36,3.24]
[1754203427999,116.72,160.38,160.36,3.24]
[1754203429010,3.34,160.4,160.36,3.24]
[1754203429202,3.34,160.41,160.36,8.48763752]
[1754203429400,113.38,160.4,160.37,3.24]
[1754203429593,116.72,160.4,160.37,9.476]
[1754203429793,116.72,160.4,160.37,6.236]
[1754203430000,116.72,160.4,160.38,3.24]
[1754203430605,116.72,160.4,160.39,3.24]
[1754203438297,122.9551,160.4,160.37,6.2361]
[1754203438501,3.34,160.39,160.37,6.2361]
[1754203438705,113.38,160.38,160.36,6.2366]
[1754203439102,113.38,160.38,160.37,3.24]
[1754203439502,113.38,160.38,160.36,6.2366]
[1754203439704,116.72,160.38,160.37,3.24]
[1754203439903,3.34,160.37,160.36,3.24]
[1754203442612,119.6159,160.38,160.35,9.497]
[1754203442811,3.22,160.37,160.36,3.26]
[1754203443808,3.22,160.37,160.36,9.4967]
[1754203444006,116.6,160.38,160.37,3.26]
[1754203444707,113.38,160.38,160.37,3.26]
[1754203445309,113.38,160.38,160.37,9.4963]
[1754203448815,116.6,160.38,160.37,3.26]
[1754203453713,116.6,160.38,160.37,9.4963]
[1754203453919,113.38,160.38,160.37,9.4963]
[1754203455016,7.7830174,160.41,160.39,6.2355]
[1754203455224,7.7830174,160.43,160.4,3.26]
[1754203455523,116.6,160.42,160.4,3.26]
[1754203456021,116.6,160.42,160.4,9.4951]
[1754203456219,116.6,160.42,160.41,3.26]
[1754203461518,113.38,160.42,160.41,14.0577174]
[1754203461927,113.36,160.44,160.42,9.4941]
[1754203462125,113.36,160.44,160.42,6.2341]
[1754203462329,113.36,160.44,160.43,3.26]
[1754203463526,116.58,160.44,160.43,3.26]
[1754203469528,113.36,160.44,160.43,9.4939]
[1754203470639,116.58,160.44,160.43,9.4939]
[1754203471133,113.36,160.44,160.42,9.4942]
[1754203471329,3.22,160.43,160.41,3.26]
[1754203472135,3.22,160.43,160.42,3.35]
[1754203472337,3.36,160.42,160.41,3.35]
[1754203473441,113.34,160.43,160.41,6.2347]
[1754203473738,113.34,160.43,160.42,3.35]
[1754203475339,113.34,160.43,160.42,9.5843]
[1754203476239,113.34,160.45,160.44,3.35]
[1754203477138,113.34,160.45,160.44,9.5836]
[1754203478239,116.7,160.45,160.44,9.5836]
[1754203478937,116.7,160.45,160.44,3.35]
[1754203480139,116.7,160.45,160.42,3.35]
[1754203480140,3.36,160.44,160.42,3.35]
[1754203480642,116.68,160.43,160.42,3.35]
[1754203481240,3.36,160.42,160.41,9.5845]
[1754203481840,3.36,160.42,160.41,3.35]
[1754203482141,3.36,160.42,160.4,3.35]
[1754203483043,3.36,160.42,160.39,6.2353]
[1754203483244,3.36,160.42,160.41,3.35]
[1754203484341,116.68,160.43,160.41,6.2347]
[1754203484545,116.68,160.43,160.42,3.35]
[1754203494352,3.36,160.42,160.41,6.2347]
[1754203494747,3.36,160.42,160.41,9.5847]
[1754203495653,3.36,160.42,160.41,3.35]
[1754203500252,3.36,160.42,160.41,9.5847]
[1754203500849,521.17592027,160.49,160.41,9.5847]
[1754203500850,3.36,160.46,160.44,3.35]
[1754203501057,113.34,160.45,160.44,3.35]
[1754203502159,113.34,160.45,160.44,9.5836]
[1754203502356,116.54,160.45,160.44,9.5836]
[1754203502658,113.34,160.45,160.44,9.5836]
[1754203508864,113.34,160.45,160.44,3.35]
[1754203513863,116.54,160.45,160.44,3.35]
[1754203515167,113.34,160.45,160.44,3.35]
[1754203515968,113.34,160.45,160.44,9.5836]
[1754203516155,113.34,160.45,160.44,3.35]
[1754203516667,116.54,160.45,160.44,3.35]
[1754203519268,3.2,160.45,160.44,3.35]
[1754203519566,116.5,160.45,160.44,3.35]
[1754203521867,113.3,160.45,160.44,9.5836]
[1754203522069,75.59445636,160.49,160.45,3.36]
[1754203522371,192.09445636,160.49,160.47,3.36]
[1754203522769,116.5,160.49,160.47,3.36]
[1754203523163,116.5,160.49,160.47,6.2323]
[1754203523366,116.5,160.49,160.48,3.36]
[1754203528075,113.3,160.49,160.48,3.36]
[1754203528776,116.5,160.49,160.48,3.36]
[1754203530374,122.7316,160.49,160.48,3.36]
[1754203530578,3.2,160.48,160.47,3.36]
[1754203530772,3.2,160.48,160.46,9.5926]
[1754203530978,116.48,160.47,160.46,9.5926]
[1754203533275,113.28,160.47,160.46,9.5926]
[1754203533580,116.79,160.47,160.46,3.52]
[1754203534670,116.79,160.47,160.46,9.7528]
[1754203537381,113.28,160.47,160.46,9.7528]
[1754203538483,116.79,160.47,160.46,9.7528]
[1754203541283,116.79,160.47,160.46,3.52]
[1754203547486,3.51,160.46,160.44,3.52]
[1754203547683,113.26,160.45,160.44,3.52]
[1754203547885,116.77,160.45,160.44,3.52]
[1754203556787,113.26,160.45,160.44,3.52]
[1754203556988,113.26,160.48,160.44,3.52]
[1754203557190,113.26,160.48,160.46,3.52]
[1754203557391,113.26,160.48,160.46,9.7527]
[1754203557595,113.26,160.48,160.47,3.52]
[1754203559182,113.26,160.48,160.47,9.7524]
[1754203559587,113.26,160.48,160.47,3.52]
[1754203562996,116.61,160.48,160.47,3.52]
[1754203564490,122.842,160.48,160.47,3.52]
[1754203567598,6.2324,160.47,160.44,4.56100682]
[1754203567792,116.59,160.46,160.45,3.43]
[1754203568797,113.24,160.46,160.45,3.43]
[1754203572898,116.59,160.46,160.45,3.43]
[1754203573902,113.24,160.46,160.45,3.43]
[1754203575107,113.24,160.46,160.45,9.6632]
[1754203582099,113.22,160.48,160.45,9.6632]
[1754203582309,116.57,160.48,160.47,3.43]
[1754203584307,113.22,160.48,160.47,3.43]
[1754203584905,3.35,160.5,160.47,9.6624]
[1754203585106,3.35,160.52,160.49,3.43]
[1754203585307,113.22,160.5,160.49,3.43]
[1754203585610,3.35,160.49,160.48,10.79270682]
[1754203585916,116.57,160.5,160.48,14.22270682]
[1754203586105,116.57,160.5,160.49,3.43]
[1754203588913,113.22,160.5,160.49,6.2316]
[1754203589102,113.22,160.5,160.49,9.6616]
[1754203589303,89.7207735,160.54,160.5,6.2312]
[1754203589508,116.55,160.53,160.51,3.43]
[1754203590409,3.35,160.52,160.51,3.43]
[1754203597920,3.35,160.52,160.49,3.45]
[1754203597921,3.41,160.51,160.49,3.45]
[1754203598122,3.41,160.49,160.47,3.45]
[1754203598316,113.18,160.48,160.46,3.45]
[1754203598517,3.41,160.47,160.46,3.45]
[1754203599618,3.41,160.47,160.46,9.6828]
[1754203600816,113.18,160.48,160.47,6.2324]
[1754203601019,113.18,160.48,160.47,9.6824]
[1754203602923,113.18,160.5,160.48,9.6819]
[1754203603123,116.59,160.5,160.49,3.45]
[1754203603719,113.18,160.5,160.49,9.6816]
[1754203604024,113.18,160.5,160.49,3.45]
[1754203604616,116.59,160.5,160.49,3.45]
[1754203605023,113.18,160.5,160.49,3.45]
[1754203605223,78.93006668,160.54,160.49,3.45]
[1754203605430,195.52006668,160.54,160.52,3.45]
[1754203606832,192.11006668,160.54,160.52,3.45]
[1754203607129,195.52006668,160.54,160.52,3.45]
[1754203608024,192.11006668,160.54,160.52,3.45]
[1754203608228,3.41,160.53,160.52,3.45]
[1754203616336,198.34006668,160.54,160.52,3.45]
[1754203616536,3.41,160.53,160.52,3.45]
[1754203621537,201.75006668,160.54,160.52,3.45]
[1754203622635,3.5,160.53,160.52,3.45]
[1754203623127,195.61006668,160.54,160.52,3.45]
[1754203623326,192.11006668,160.54,160.52,3.45]
[1754203624539,195.61006668,160.54,160.52,3.45]
[1754203625238,201.83976668,160.54,160.52,3.45]
[1754203625440,192.11006668,160.54,160.53,3.39]
[1754203625735,113.18,160.54,160.53,3.39]
[1754203626136,3.5,160.57,160.53,3.39]
[1754203626438,113.14,160.56,160.53,3.39]
[1754203626641,3.5,160.58,160.54,3.39]
[1754203626939,3.5,160.59,160.58,3.39]
[1754203627128,116.64,160.59,160.58,3.39]
[1754203627332,113.14,160.59,160.58,3.39]
[1754203628737,116.64,160.59,160.58,3.39]
[1754203629138,122.8677,160.59,160.58,3.39]
[1754203629636,9.7281,160.58,160.57,3.39]
[1754203629838,3.5,160.57,160.53,3.39]
[1754203630034,4.55089913,160.55,160.53,3.39]
[1754203630238,116.62,160.54,160.53,3.39]
[1754203630740,122.8497,160.54,160.53,3.39]
[1754203631843,113.12,160.54,160.53,3.39]
[1754203632037,116.62,160.54,160.53,3.39]
[1754203632546,113.12,160.54,160.53,3.39]
[1754203632848,113.12,160.54,160.53,9.6201]
[1754203633250,3.5,160.6,160.53,3.39]
[1754203633444,119.3478,160.59,160.55,6.229]
[1754203633647,119.3478,160.59,160.57,3.39]
[1754203634041,122.8478,160.59,160.57,3.39]
[1754203634241,113.12,160.59,160.56,6.2288]
[1754203634446,113.12,160.59,160.57,3.39]
[1754203636951,113.12,160.59,160.57,9.6185]
[1754203637151,113.12,160.59,160.58,3.39]
[1754203638055,113.12,160.59,160.58,9.6181]
[1754203638352,113.12,160.61,160.58,3.39]
[1754203639451,113.12,160.61,160.6,3.39]
[1754203640138,116.62,160.61,160.6,3.39]
[1754203644759,113.12,160.61,160.6,3.39]
[1754203646058,116.62,160.61,160.6,3.39]
[1754203647254,122.847,160.61,160.6,3.39]
[1754203647657,3.5,160.6,160.58,3.39]
[1754203647859,3.5,160.59,160.54,7.1165567]
[1754203648659,3.5,160.59,160.55,3.39]
[1754203648957,9.7276,160.6,160.57,3.39]
[1754203650355,3.5,160.59,160.55,3.39]
[1754203650560,3.5,160.57,160.54,3.39]
[1754203650756,113.08,160.58,160.53,114.75217124]
[1754203650961,3.5,160.57,160.53,118.14217124]
[1754203651162,6.2291,160.56,160.53,118.14217124]
[1754203651661,3.5,160.55,160.54,3.24]
[1754203656865,3.5,160.55,160.53,114.75217124]
[1754203657067,120.1965567,160.54,160.46,12.35557365]
[1754203657264,3.24,160.53,160.47,3.24]
[1754203657461,3.24,160.5,160.48,3.24]
[1754203657656,3.24,160.5,160.47,6.2321]
[1754203657968,3.24,160.5,160.48,3.24]
[1754203658168,3.24,160.5,160.49,3.24]
[1754203658572,9.4712,160.5,160.49,3.24]
[1754203659568,3.24,160.49,160.48,3.24]
[1754203660572,6.2309,160.51,160.48,3.24]
[1754203660774,3.24,160.5,160.48,3.24]
[1754203662360,3.24,160.49,160.48,3.24]
[1754203663073,9.4716,160.49,160.48,3.24]
[1754203663261,6.2316,160.49,160.47,3.24]
[1754203663567,3.24,160.48,160.44,3.24]
[1754203663772,3.24,160.48,160.42,3.24]
[1754203663965,6.2324,160.47,160.42,3.24]
[1754203664166,3.24,160.46,160.42,3.24]
[1754203664565,3.24,160.46,160.44,3.24]
[1754203665372,3.24,160.47,160.45,3.24]
[1754203666174,6.2323,160.48,160.45,3.24]
[1754203666175,9.4723,160.48,160.45,3.24]
[1754203668069,6.2323,160.48,160.45,3.24]
[1754203668274,3.24,160.47,160.45,3.24]
[1754203669578,122.6517,160.49,160.45,9.4731]
[1754203669874,3.24,160.52,160.46,3.24]
[1754203670476,418.7,160.57,160.5,3.24]
[1754203670477,3.24,160.56,160.5,3.24]
[1754203671073,3.24,160.56,160.51,7.1165567]
[1754203671379,9.4692,160.56,160.52,3.24]
[1754203673067,6.2293,160.55,160.52,3.24]